Cogmind - Beta 13 @@@ ROGUE MODE // 2024.04.17 @ 12:33:39 Player: Mertly Result: Self-destructed Performance ------------- Evolutions (4) 2000 Regions Visited (7) 1400 Robots Destroyed (10) 50 Value Destroyed (222) 222 Prototype IDs (8) 160 Alien Tech Used (0) 0 Bonus (511) 511 TOTAL SCORE: 4343 Bonus ------- High Alert Combat Kills 11 Entered DSFs 500 Cogmind --------- Core Integrity 568/850 Matter 90/300 Energy 18/100 System Corruption 0% Temperature Cool (8) Movement Flying (35) Location -6/Factory Parts ------- > --- POWER (1) -------- (None) > --- PROPULSION (6) --- Cooled VTOL Module > --- UTILITY (6) ------ (None) > --- WEAPON (2) ------- (None) > --- INVENTORY (5) ---- Energy Well (0) Transport Network Coupler Core Analyzer Advanced ECM Suite Power Sword Peak State ------------ > --- POWER ------------ (None) > --- PROPULSION ------- Gravmag Array Improved Flight Unit Xenon Bombardment Thruster Xenon Bombardment Thruster Cooled VTOL Module > --- UTILITY ---------- Small Storage Unit Energy Well Improved Sensor Array Layered Light Armor Plating Layered Light Armor Plating > --- WEAPON ----------- Power Sword > --- INVENTORY -------- Gravmag Array Improved Heat Sink Transport Network Coupler Core Analyzer Advanced ECM Suite Wave Gun Magnetic Acceleration Cannon [Rating: 51] Favorites ----------- Power Light Deuterium Engine Engine Light Deuterium Engine Propulsion Improved Flight Unit Leg Aluminum Leg Hover Unit Hover Unit Flight Unit Improved Flight Unit Utility Layered Light Armor Plating Device Improved Sensor Array Storage Small Storage Unit Processor Signal Interpreter Protection Layered Light Armor Plating Weapon Improved EM Shotgun Energy Gun Improved EM Shotgun Energy Cannon Ion Cannon Ballistic Gun Assault Rifle Slashing Weapon Power Sword Special Melee Weapon Datajack Build | -11 -10 -9 -9 -8 -7 -7 -6 ------- Run | Yrd Mat Mat Sto Mat Fac DSF Fac Slots Evolved 8 | . . 2 . 2 2 . 2 Power . | . . . . . . . . Propulsion 4 | . . 2 . . . . 2 Utility 4 | . . . . 2 2 . . Weapon . | . . . . . . . . Parts Attached 71 | 8 9 7 13 11 5 6 12 Power 4 | 1 . 1 1 1 . . . Engine 4 | 1 . 1 1 1 . . . Core . | . . . . . . . . Reactor . | . . . . . . . . Propulsion 21 | 2 2 2 5 . . 3 7 Treads . | . . . . . . . . Leg 2 | 2 . . . . . . . Wheel . | . . . . . . . . Hover 3 | . . 1 . . . . 2 Flight 16 | . 2 1 5 . . 3 5 Utility 30 | 2 3 3 3 8 5 3 3 Device 16 | . 2 3 1 5 4 . 1 Storage 6 | 2 . . 1 . 1 1 1 Processor 1 | . 1 . . . . . . Hackware . | . . . . . . . . Protection 7 | . . . 1 3 . 2 1 Artifact . | . . . . . . . . Weapon 16 | 3 4 1 4 2 . . 2 Energy Gun 5 | . . 1 4 . . . . Energy Cannon 2 | . . . . 2 . . . Ballistic Gun 6 | 3 3 . . . . . . Ballistic Cannon . | . . . . . . . . Launcher . | . . . . . . . . Special Weapon . | . . . . . . . . Impact Weapon . | . . . . . . . . Slashing Weapon 2 | . . . . . . . 2 Piercing Weapon . | . . . . . . . . Special Melee Weapon 1 | . 1 . . . . . . Unidentified Prototypes 3 | . . . 3 . . . . Parts Lost 16 | . . 2 1 1 1 1 10 Power 2 | . . 1 . . . . 1 Propulsion 5 | . . . . . . . 5 Utility 8 | . . . 1 1 1 1 4 Weapon 1 | . . 1 . . . . . Highest Loss Streak 7 | . . 2 1 1 1 1 7 To Critical Strikes . | . . . . . . . . Average Slot Usage (%) 80 | . 77 88 95 81 80 80 64 Engine 8 | . 14 11 11 9 7 7 3 Leg 1 | . 9 . . . . . . Hover 2 | . . 11 . . . . 2 Flight 29 | . 18 22 43 36 30 30 25 Device 11 | . 8 11 4 17 23 21 8 Storage 4 | . . . 5 1 3 4 10 Processor 4 | . 3 11 9 . . . . Protection 6 | . . . 1 16 15 15 10 Energy Gun 4 | . . 7 18 . . . . Ballistic Gun 2 | . 14 3 . . . . . Special Melee Weapon 3 | . 8 11 . . . . . Naked Turns . | . . . . . . . . Heaviest Build 24 | 4 7 9 20 20 20 23 24 Greatest Support 40 | 10 8 8 20 20 20 23 40 Greatest Overweight (x) 1 | 1 1 1 . . . . . Average Overweight (x) . | . . . . . . . . Largest Inventory Capacity 8 | 8 5 5 8 8 8 8 8 Average Capacity 6 | 5 5 5 6 5 6 7 8 Most Carried 8 | 4 5 5 8 8 5 7 8 Average Carried 5 | 2 4 4 5 5 3 6 7 Final Capacity 8 | 5 5 5 8 5 5 8 5 Final Carried 8 | 4 5 4 8 5 5 7 5 Class Distribution -------------------- 57% | Sprinter 23% | Scavenger-Mutant 18% | Mutant Dominant Class ---------------- Mutant | -10/Materials Scavenger-Mutant | -9/Materials Sprinter | -9/Storage Sprinter | -8/Materials Sprinter | -7/Factory Sprinter | -7/DSF Sprinter | -6/Factory Resources | -11 -10 -9 -9 -8 -7 -7 -6 ----------- Run | Yrd Mat Mat Sto Mat Fac DSF Fac Matter Collected 677 | 190 62 228 36 137 . . 24 Remotely . | . . . . . . . . Salvage Created 387 | . 129 . 145 113 . . . Parts 17 | . 11 . 5 1 . . . Haulers Intercepted 2 | . . . 1 1 . . . Recyclers Shooed . | . . . . . . . . Parts Field Recycled . | . . . . . . . . Retrieved Matter . | . . . . . . . . Parts Self-Destructed . | . . . . . . . . Prevented . | . . . . . . . . Kills | -11 -10 -9 -9 -8 -7 -7 -6 ------- Run | Yrd Mat Mat Sto Mat Fac DSF Fac Combat Hostiles Destroyed 7 | . 4 . 2 1 . . . Guns 5 | . 4 . 1 . . . . Cannons 1 | . . . . 1 . . . AOE 1 | . . . 1 . . . . Classes Destroyed 4 | . 3 . 1 . . . . Hauler 2 | . . . 1 1 . . . Watcher 1 | . 1 . . . . . . Swarmer 3 | . 3 . . . . . . Grunt 4 | . 1 . 2 1 . . . Best Kill Streak 4 | . 4 . 3 1 . . . Combat Bots Only 4 | . 4 . 2 1 . . . Max Kills in Single Turn 1 | . 1 . 1 1 . . . Gunslinging . | . . . . . . . . Exploded 1 | . . . 1 . . . . Melee . | . . . . . . . . Uniques/NPCs Destroyed . | . . . . . . . . Combat | -11 -10 -9 -9 -8 -7 -7 -6 -------- Run | Yrd Mat Mat Sto Mat Fac DSF Fac Hostile Shots Fired 365 | . 20 29 56 35 . 14 211 Missed 171 | . 7 17 36 12 . 9 90 Damage Taken 2527 | . 103 170 288 323 75 104 1464 Core 530 | . 24 56 46 122 . . 282 Absorbed by Shields 28 | . . . 28 . . . . Redirected to Shielding 49 | . . . . . 49 . . Core Remaining (%) 88 | 100 90 . 74 77 . 100 . Volleys Fired 59 | . 23 2 18 16 . . . Largest 2 | . 2 1 2 1 . . . Hottest 90 | . 40 56 90 60 . . . Shots Fired 74 | . 33 2 23 16 . . . Gun 58 | . 33 2 23 . . . . Cannon 16 | . . . . 16 . . . Launcher . | . . . . . . . . Special . | . . . . . . . . Kinetic 33 | . 33 . . . . . . Thermal 25 | . . 2 7 16 . . . Explosive . | . . . . . . . . Electromagnetic 16 | . . . 16 . . . . Robot Hit Streak 11 | . 4 3 7 11 . . . Robot Miss Streak 3 | . 2 1 3 1 . . . Penetration Max . | . . . . . . . . Secondary Targets 1 | . 1 . . . . . . Max Gunslinging Chain 1 | . 1 . . . . . . Shots Hit Robots 42 | . 19 1 9 13 . . . Core Hits 17 | . 7 . 6 3 . . 1 Critical Kills 1 | . 1 . . . . . . Critical Parts Destroyed . | . . . . . . . . Critical Strikes 1 | . 1 . . . . . . Destroy 1 | . 1 . . . . . . Melee Attacks 2 | . . . . . . . 2 Impact . | . . . . . . . . Slashing 2 | . . . . . . . 2 Piercing . | . . . . . . . . Sneak Attacks . | . . . . . . . . Combat Hostiles . | . . . . . . . . Follow-up Attacks . | . . . . . . . . Damage Inflicted 749 | . 194 14 234 301 . . 6 Guns 371 | . 194 14 163 . . . . Cannons 301 | . . . . 301 . . . Explosions 71 | . . . 71 . . . . Melee . | . . . . . . . . Ramming 6 | . . . . . . . 6 Kinetic 194 | . 194 . . . . . . Thermal 386 | . . 14 71 301 . . . Explosive . | . . . . . . . . Electromagnetic 163 | . . . 163 . . . . Impact . | . . . . . . . . Slashing . | . . . . . . . . Piercing . | . . . . . . . . Highest Corruption . | . . . . . . . . Average Corruption . | . . . . . . . . Corruption Purged . | . . . . . . . . Corruption Blocked . | . . . . . . . . Overload Shots . | . . . . . . . . Overflow Damage . | . . . . . . . . Projectiles . | . . . . . . . . Explosions . | . . . . . . . . Melee . | . . . . . . . . Knockbacks . | . . . . . . . . Impact . | . . . . . . . . Kinetic . | . . . . . . . . Secondary . | . . . . . . . . Self-Inflicted Damage 60 | . . . 57 . . . 3 Shots 2 | . . . 2 . . . . Rammed 1 | . . . . . . . 1 Targets Rammed 1 | . . . . . . . 1 Kicked . | . . . . . . . . Crushed . | . . . . . . . . Highest Temperature 198 | . 4 41 127 176 . . 198 Average Temperature 59 | . 3 20 41 72 . . 59 Received Heat Transfer 696 | . . 60 108 126 . . 402 Siege Activations . | . . . . . . . . Robots Corrupted . | . . . . . . . . Combat Hostiles . | . . . . . . . . Parts Fried 2 | . . . 2 . . . . Impact Corruptions . | . . . . . . . . Robots Melted . | . . . . . . . . Combat Hostiles . | . . . . . . . . Parts Melted 2 | . . . . 2 . . . Heat Transferred 618 | . . 37 100 481 . . . Parts Sabotaged . | . . . . . . . . Parts Stolen . | . . . . . . . . Parts Stripped . | . . . . . . . . Power Chain Reactions 2 | . . . 2 . . . . Alert | -11 -10 -9 -9 -8 -7 -7 -6 ------- Run | Yrd Mat Mat Sto Mat Fac DSF Fac Peak Influence 417 | . 187 275 354 417 218 164 342 Initial 189 | . . 78 59 127 189 149 80 Average 187 | . 116 168 204 198 203 156 236 Maximum Alert Level 2 | . . 1 1 2 1 . 1 Low Security (%) 57 | 100 100 69 50 50 10 100 37 Level 1 39 | . . 30 49 28 89 . 62 Level 2 3 | . . . . 21 . . . Level 3 . | . . . . . . . . Level 4 . | . . . . . . . . Level 5 . | . . . . . . . . High Security . | . . . . . . . . Max Security . | . . . . . . . . Squads Dispatched 14 | . 1 2 4 1 1 2 3 Investigation 5 | . . 1 2 . 1 . 1 Extermination . | . . . . . . . . Reinforcement 9 | . 1 1 2 1 . 2 2 Assault . | . . . . . . . . Garrison . | . . . . . . . . Intercept . | . . . . . . . . Searches Triggered . | . . . . . . . . Construction Impeded . | . . . . . . . . Haulers Reinforced . | . . . . . . . . Active Scanning Responses . | . . . . . . . . Cargo Convoy Interrupts . | . . . . . . . . Stealth | -11 -10 -9 -9 -8 -7 -7 -6 --------- Run | Yrd Mat Mat Sto Mat Fac DSF Fac Distress Signals 5 | . . 2 3 . . . . Communications Jammed . | . . . . . . . . Distress Signals . | . . . . . . . . Times Spotted 105 | . 6 13 31 17 . 7 31 Peak Tracking Total 13 | . 3 8 13 11 . 6 10 Tactical Retreats 19 | . 1 4 5 3 . . 6 Traps | -11 -10 -9 -9 -8 -7 -7 -6 ------- Run | Yrd Mat Mat Sto Mat Fac DSF Fac Traps Triggered 2 | . . 1 . . 1 . . Indirectly . | . . . . . . . . Trap Hack Attempts . | . . . . . . . . Triggered . | . . . . . . . . Disarmed . | . . . . . . . . Reprogrammed . | . . . . . . . . Reused . | . . . . . . . . Traps Extracted . | . . . . . . . . Installed . | . . . . . . . . Triggered . | . . . . . . . . Machines | -11 -10 -9 -9 -8 -7 -7 -6 ---------- Run | Yrd Mat Mat Sto Mat Fac DSF Fac Machines Disabled 1 | . . . 1 . . . . Max in Single Turn 1 | . . . 1 . . . . Machines Repaired . | . . . . . . . . Machines Dismantled . | . . . . . . . . Machines Sabotaged . | . . . . . . . . Overloaded Fab Kills . | . . . . . . . . Hacking | -11 -10 -9 -9 -8 -7 -7 -6 --------- Run | Yrd Mat Mat Sto Mat Fac DSF Fac Machines Accessed 26 | . 2 6 7 4 3 . 4 Terminals 20 | . 2 4 6 4 2 . 2 Fabricators 2 | . . . . . 1 . 1 Repair Stations . | . . . . . . . . Recycling Units 3 | . . 1 1 . . . 1 Scanalyzers 1 | . . 1 . . . . . Garrison Access . | . . . . . . . . Total Hacks 65 | . 3 11 17 15 6 . 13 Successful 33 | . 1 7 8 8 3 . 6 Failed 32 | . 2 4 9 7 3 . 7 Catastrophic 5 | . . . 2 . 1 . 2 Database Lockouts . | . . . . . . . . Manual . | . . . . . . . . Terminals 51 | . 3 8 14 15 2 . 9 Fabricators 5 | . . . . . 4 . 1 Repair Stations . | . . . . . . . . Recycling Units 7 | . . 1 3 . . . 3 Scanalyzers 2 | . . 2 . . . . . Garrison Access . | . . . . . . . . Terminal Hacks 25 | . 1 4 7 8 1 . 4 Record 5 | . . . 1 . . . 4 Part Schematic 1 | . . . 1 . . . . Prototype ID Bank 3 | . 1 . 1 1 . . . Open Door 3 | . . . 3 . . . . Open DSF 1 | . . . . . 1 . . Branch Access Points 1 | . . 1 . . . . . Alert Level 1 | . . . . 1 . . . Unreport Threat 3 | . . 1 1 1 . . . Locate Traps 1 | . . 1 . . . . . Hauler Manifests 4 | . . 1 . 3 . . . Zone Layout 2 | . . . . 2 . . . Fabricator Hacks 3 | . . . . . 2 . 1 Load Schematic 1 | . . . . . 1 . . Build 2 | . . . . . 1 . 1 Repair Station Hacks . | . . . . . . . . Recycling Unit Hacks 3 | . . 1 1 . . . 1 Retrieve Matter 1 | . . . . . . . 1 Retrieve Components 2 | . . 1 1 . . . . Scanalyzer 2 | . . 2 . . . . . Insert Component 1 | . . 1 . . . . . Analyze 1 | . . 1 . . . . . Garrison Access Hacks . | . . . . . . . . Unauthorized Hacks . | . . . . . . . . Terminals . | . . . . . . . . Fabricators . | . . . . . . . . Repair Stations . | . . . . . . . . Recycling Units . | . . . . . . . . Scanalyzers . | . . . . . . . . Garrison Access . | . . . . . . . . Data Cores Recovered . | . . . . . . . . Used . | . . . . . . . . Hacking Detections 17 | . 2 3 4 3 2 . 3 Full Trace Events 4 | . . . 2 . 1 . 1 Feedback Events . | . . . . . . . . Feedback Blocked . | . . . . . . . . Robot Schematics Acquired . | . . . . . . . . Robots Built . | . . . . . . . . Authchips . | . . . . . . . . Time . | . . . . . . . . Total Robot Build Rating . | . . . . . . . . Part Schematics Acquired 2 | . . 1 1 . . . . Parts Built 3 | . . . . . 1 . 2 Authchips . | . . . . . . . . Time 95 | . . . . . 42 . 53 Total Part Build Rating 16 | . . . . . 4 . 12 Parts Repaired . | . . . . . . . . Time . | . . . . . . . . Parts Recycled . | . . . . . . . . Recycled Matter . | . . . . . . . . Retrieved Matter . | . . . . . . . . Retrieved Components 5 | . . 2 3 . . . . Parts Scanalyzed 1 | . . 1 . . . . . Part Schematics Acquired 1 | . . 1 . . . . . Parts Damaged . | . . . . . . . . Bothacking | -11 -10 -9 -9 -8 -7 -7 -6 ------------ Run | Yrd Mat Mat Sto Mat Fac DSF Fac Used RIF Installer . | . . . . . . . . Robots Hacked . | . . . . . . . . Non-combat . | . . . . . . . . Combat . | . . . . . . . . Robot Hacks Applied . | . . . . . . . . Relay Couplers Released . | . . . . . . . . Fabnet Peak Effective % . | . . . . . . . . Robots Rewired . | . . . . . . . . Allies Hacked . | . . . . . . . . Hacks Repelled . | . . . . . . . . Allies | -11 -10 -9 -9 -8 -7 -7 -6 -------- Run | Yrd Mat Mat Sto Mat Fac DSF Fac Total Allies . | . . . . . . . . Largest Group . | . . . . . . . . Highest-Rated Group . | . . . . . . . . Highest-Rated Ally . | . . . . . . . . Total Orders . | . . . . . . . . Ally Attacks . | . . . . . . . . Total Damage . | . . . . . . . . Kills . | . . . . . . . . Allies Corrupted . | . . . . . . . . Allies Melted . | . . . . . . . . Intel | -11 -10 -9 -9 -8 -7 -7 -6 ------- Run | Yrd Mat Mat Sto Mat Fac DSF Fac Robot Analysis Total . | . . . . . . . . Derelict Logs Recovered . | . . . . . . . . Drone Launches . | . . . . . . . . Drone Recoveries . | . . . . . . . . Exploration | -11 -10 -9 -9 -8 -7 -7 -6 ------------- Run | Yrd Mat Mat Sto Mat Fac DSF Fac Turns Passed 1765 | 40 217 350 319 248 121 54 416 Spaces Moved 3123 | 30 286 704 582 567 259 69 626 Core 102 | 28 74 . . . . . . Treads . | . . . . . . . . Legs 2 | 2 . . . . . . . Wheels . | . . . . . . . . Hover 40 | . . . . . . . 40 Flight 2979 | . 212 704 582 567 259 69 586 Fastest Speed 24 | 50 37 37 29 29 29 29 24 Average Speed 32 | 76 41 37 30 29 29 29 29 Slowest Speed 120 | 120 100 117 37 29 29 29 56 Overloaded Moves . | . . . . . . . . Propulsion Burnouts . | . . . . . . . . Robots Hopped 35 | . 1 5 13 4 . 3 9 Cave-ins Triggered . | . . . . . . . . Exploration Rate (%) 36 | 3 40 48 78 55 6 51 12 Regions Visited 7 Branch Regions 1 Pre-discovered Areas . | . . . . . . . . Known Exits Taken 3 | . 1 1 . . 1 . . Unknown Exits Taken 3 | 1 . . 1 1 . . . Scrap Searched . | . . . . . . . . Spaces Dug 2 | . . . . . . . 2 Terrain Destroyed 9 | . . . 6 1 . . 2 Melee 2 | . . . . . . . 2 Projectile 1 | . . . . 1 . . . AOE 6 | . . . 6 . . . . Terrain Rammed . | . . . . . . . . Walls Destroyed . | . . . . . . . . Machines Disabled . | . . . . . . . . Actions | -11 -10 -9 -9 -8 -7 -7 -6 --------- Run | Yrd Mat Mat Sto Mat Fac DSF Fac Total 3765 | 49 354 786 687 635 304 101 849 Wait 443 | . 25 67 77 18 37 22 197 Move 3047 | 29 283 693 555 558 258 63 608 Hop 34 | . 1 5 13 4 . 2 9 Pick Up 50 | 7 8 6 5 11 2 3 8 Fast Attach 10 | . 1 . 4 2 . 2 1 Attach 35 | 8 4 3 1 6 4 1 8 Detach 18 | 5 1 1 2 3 2 . 4 Swap 26 | . 4 4 8 3 1 3 3 Drop 40 | . 4 5 4 14 . 5 8 Fire 59 | . 23 2 18 16 . . . Melee 2 | . . . . . . . 2 Ram 1 | . . . . . . . 1 Kick . | . . . . . . . . Crush . | . . . . . . . . Escape Stasis . | . . . . . . . . Rewire . | . . . . . . . . Trap . | . . . . . . . . Miscellaneous . | . . . . . . . . Route ------- -11/Scrapyard -10/Materials -9/Materials (discovered 2 exits: *Min / *Sto) -9/Storage -8/Materials -7/Factory -7/DSF -6/Factory (discovered 1 exit: [*Fac]) History --------- Turn | Location | Event 27 | -11/Scrapyard | Discovered new exit (range 15) 41 | -11/Scrapyard | Entered Materials 223 | -10/Materials | Discovered new exit (range 9) 245 | -10/Materials | Identified exit to Materials 258 | -10/Materials | Entered another Materials area 258 | -9/Materials | Evolved 2 slots: Propulsion x2 512 | -9/Materials | Build established: Scavenger-Mutant 519 | -9/Materials | Discovered new exit (range 14) 531 | -9/Materials | Identified exit to Mines 556 | -9/Materials | Identified exit to Storage 608 | -9/Materials | Entered Storage 906 | -9/Storage | Discovered new exit (range 16) 912 | -9/Storage | Build established: Sprinter 927 | -9/Storage | Entered Materials 927 | -8/Materials | Evolved 2 slots: Utility x2 1125 | -8/Materials | Discovered new exit (range 16) 1175 | -8/Materials | Entered Factory 1175 | -7/Factory | Evolved 2 slots: Utility x2 1230 | -7/Factory | Fabricated Adv. ECM Suite (x1) 1296 | -7/Factory | Identified exit to DSF 1296 | -7/Factory | Entered DSF 1327 | -7/DSF | Additional patrols routed to DSF 1345 | -7/DSF | Discovered new exit (range 15) 1350 | -7/DSF | Entered Factory 1350 | -6/Factory | Evolved 2 slots: Propulsion x2 1600 | -6/Factory | Fabricated Wave Gun (x2) 1611 | -6/Factory | Discovered new exit (range 8) 1635 | -6/Factory | Lost 3 parts (1p2n) 1766 | -6/Factory | Self-destructed Last Messages --------------- 01718_ Imp. Sensor Array destroyed. 01721_ Slug penetrates Wall. 01721_ Penetrated by Slug. 01724_ Slug penetrates Wall. 01725_ Slammed into H-66 Slayer. 01728_ Slug penetrates Wall. 01728_ Lyr. Light Armor Plating destroyed. 01733_ Dropped Gravmag Array. 01734_ Slug penetrates Wall. 01735_ Xenon Bombardment Thruster destroyed. 01737_ Slug penetrates Wall. 01743_ Wall collapses. 01747_ Dropped Wave Gun. 01747_ Gravmag Array destroyed. 01747_ Penetrated by Slug. 01750_ Slug penetrates Wall. 01760_ Xenon Bombardment Thruster destroyed. 01764_ ALERT: Cargo convoy en route, clear transfer corridor. 01766_ Sml. Storage Unit destroyed. Map ----- +----------------------------------------------------+ | #??# #???# """ """ #?????????????????????? | | ########+######### """ """ #??????????######?????? | | # """ """ #??????????#""""#?????? | | # #??????????#""F"#?????? | | # ############""[ ####+## | | # "T" / ^ ^ | | # """ ########### ! | | ## ######### # #?????????# """ ^!! | | # #???????# #####/###########???# """ !!! | | # #???????# #???# """ !! | | # #???????# #???# | | # #???????# #???# | | # #???????# #???# ##### | | # #???????# #???# #???# | | # #???????###########+###########???# #???# | | # #????########### #?????????# ###???# | | # #????# # """ #?????????# #??#### | | + #????# # "R #????###### #??# | | # #????? # """ #????# #??# | | # #????# # #????# #??# ] | | ## #????# """ """ # """ #????# ##########??# | | ?# #????# """ """ # """ #????# #???????????# | | ## #????# """ """ # """ #????# #???????????# | | #????# # #??### ###???????###### | | ###########+#########+###### ######??# | | # ### @ # ####] | | + + ] Y s; s " ! < | | ## # ### m # # ## | | ?# # " " #?# ############+## # # ## | | ?# # "Y" #?# #???# ####### + ####### | | ?# # """ ## #??# #?????# # #?????? | | ?# ######### #??# #?????# # ####### | | ?# ?????? #??# #?????# + | | ??##?????### #??# #?????# ######### | | ???????????# #??# #?????######???????? | | ???????????#######??# #??????????????????? | | ????????????????????# ???????????????????? | | ????????????????????##########???????????????????? | | | | | | | | | | | | | | | | | | | | | | | | | +----------------------------------------------------+ Best States ------------- Heat Dissipation 48 Coolant Potential 50 Energy Generation 14 Energy Capacity 490 Matter Stores 290 Matter Capacity 300 Sight Range 16 Robot Scan Range 15 Terrain Scan Density 10 ECM Strength 2 Armor Coverage 375 Utility Shielding 66 Evasion (%) 64 Item Schematics ----------------- Flight Unit | -9/Materials | Scanalyzed Adv. ECM Suite | -9/Storage | Hacked Robot Schematics ------------------ None Fabricated ------------ Adv. ECM Suite | x1 | -7/Factory Wave Gun | x2 | -6/Factory | Preloaded Alien Tech Used ----------------- None Achievements -------------- Can't Catch Me Slippery One Challenges ------------ None Game ------ Seed FlyingCoolantSabre Manual? 0 Play Time 02:13:57 Cumulative 29.1 hours Start 2024.04.17 @ 10:06:02 End 2024.04.17 @ 12:33:39 Sessions 1 Manual Loads 0 Difficulty Rogue Special Mode None Game No. 17 Rogue 17 Adventurer 0 Explorer 0 Win Type - Total 0 Types 0/0/0/0/0/0/0/0/0 Lore% 5 Gallery% 23 Achievement% 18 Wizard Run 0 Options --------- Layout 1 ASCII 0 Keyboard 0 Movement Mouse Keybinds 0 Fullscreen 2 Font 24/Smallcaps Map View 50x35 Zoom Use 0% Tactical HUD 1 Map Filters NONE Filters NONE Steam 1 RUN: ed6dab59-1021-4c0b-81d0-a4a1d5232c21